[Event "HUN-ch U8-U18 2019"]
[Site "Balatonlelle"]
[Date "2019.06.24"]
[Round "4.22"]
[White "Szabo, Marton Nandor"]
[Black "Magold, Filip"]
[Result "0-1"]
[ECO "D10"]
[WhiteElo "1665"]
[BlackElo "1906"]
[Annotator "NA"]
[PlyCount "106"]
[EventDate "2019.06.21"]
[EventType "swiss"]
[EventCountry "HUN"]
[SourceTitle "playchess.com"]
[Source "ChessBase"]
[SourceQuality "1"]
[TimeControl "40/5400+30:1800+30"]

1. Nf3 {[%emt 0:00:02]} d5 {[%emt 0:00:11]} 2. d4 {[%emt 0:01:12]} Nf6 {[%emt 0:00:12]} 3. c4 {[%emt 0:00:08]} c6 {[%emt 0:00:12]} 4. cxd5 {[%emt 0:00:45]} cxd5 {[%emt 0:00:07]} 5. Bf4 {[%emt 0:01:22]} e6 {[%emt 0:01:07]} 6. Nbd2 {[%emt 0:01:14]} Nc6 {[%emt 0:01:00]} 7. e3 {[%emt 0:00:49]} Bd6 {[%emt 0:01:31]} 8. Bg5 {[%emt 0:01:59]} h6 {[%emt 0:02:21]} 9. Bh4 {[%emt 0:00:33]} Be7 {[%emt 0:00:39]} 10. Be2 {[%emt 0:04:20]} O-O {[%emt 0:00:39]} 11. O-O {[%emt 0:01:52]} a6 {[%emt 0:01:25]} 12. Rc1 {[%emt 0:01:58]} Qd7 {[%emt 0:02:05]} 13. Bg3 {[%emt 0:01:00]} b5 {[%emt 0:00:49]} 14. Ne5 {[%emt 0:00:55]} Nxe5 {[%emt 0:00:11]} 15. Bxe5 {[%emt 0:00:03]} Ne8 {[%emt 0:00:12]} 16. Nb3 {[%emt 0:02:33]} Bb7 {[%emt 0:01:11]} 17. Nc5 {[%emt 0:04:06]} Bxc5 {[%emt 0:00:49]} 18. Rxc5 {[%emt 0:00:37]} Nd6 {[%emt 0:01:28]} 19. Bxd6 {[%emt 0:01:07]} Qxd6 {[%emt 0:01:10]} 20. b4 {[%emt 0:00:46]} Rfc8 {[%emt 0:00:38]} 21. a3 {[%emt 0:02:14]} Rc6 {[%emt 0:00:20]} 22. f4 f5 {[%emt 0:03:36]} 23. Rf3 {[%emt 0:08:39]} Rb6 {[%emt 0:09:57]} 24. Rg3 {[%emt 0:05:39]} Bc6 {[%emt 0:01:51]} 25. Qe1 {[%emt 0:05:10]} Qd7 {[%emt 0:04:01]} 26. Rg6 {[%emt 0:05:31]} Qe7 {[%emt 0:00:53]} 27. Qc3 {[%emt 0:07:56]} Qd7 {[%emt 0:03:07]} 28. Qe1 {[%emt 0:00:37]} Kh7 {[%emt 0:00:48]} 29. Rg3 {[%emt 0:00:58]} Qd6 {[%emt 0:02:02]} 30. Bd3 {[%emt 0:08:16]} Rb7 {[%emt 0:05:05]} 31. Rh3 {[%emt 0:06:33]} Kh8 {[%emt 0:01:09]} 32. Qg3 {[%emt 0:05:40]} a5 {[%emt 0:03:22]} 33. Qg6 {[%emt 0:01:08]} Be8 34. Qg3 {[%emt 0:01:38]} axb4 {[%emt 0:00:44]} 35. axb4 {[%emt 0:00:09]} Rba7 {[%emt 0:03:50]} 36. Qh4 {[%emt 0:08:46]} Ra1+ {[%emt 0:00:27]} 37. Kf2 {[%emt 0:00:18]} R1a2+ {[%emt 0:00:42]} 38. Kf3 {[%emt 0:00:44]} Rd2 {[%emt 0:09:43]} 39. Bxb5 {[%emt 0:09:55]} Bxb5 {[%emt 0:00:08]} 40. Rxb5 Qa6 {[%emt 0:00:00]} 41. Qe1 {[%emt 0:00:22]} Qxb5 {[%emt 0:04:27]} 42. Qxd2 {[%emt 0:00:13]} Qc4 {[%emt 0:00:30]} 43. Qe1 {[%emt 0:06:00]} Ra2 {[%emt 0:00:37]} 44. g4 {[%emt 0:02:57]} Qc2 {[%emt 0:00:33]} 45. Qf1 {[%emt 0:00:36]} fxg4+ {[%emt 0:04:07]} 46. Kxg4 {[%emt 0:00:08]} Qg6+ {[%emt 0:00:26]} 47. Kf3 {[%emt 0:00:24]} Qe4+ {[%emt 0:02:04]} 48. Kg4 {[%emt 0:00:34]} Rg2+ 49. Rg3 {[%emt 0:01:22]} Rxh2 {[%emt 0:01:23]} 50. Rh3 {[%emt 0:02:46]} Rg2+ {[%emt 0:00:45]} 51. Kh4 Qg6 {[%emt 0:00:04]} 52. Qf3 {[%emt 0:00:41]} Qf6+ {[%emt 0:00:05]} 53. Kh5 g6+ 0-1

[Event "HUN-ch U8-U18 2019"]
[Site "Balatonlelle"]
[Date "2019.06.24"]
[Round "4.22"]
[White "Bodo, Boglarka"]
[Black "Karacsonyi, Kata"]
[Result "0-1"]
[ECO "B27"]
[WhiteElo "1646"]
[BlackElo "1798"]
[Annotator "NA"]
[PlyCount "76"]
[EventDate "2019.06.21"]
[EventType "swiss"]
[EventCountry "HUN"]
[SourceTitle "playchess.com"]
[Source "ChessBase"]
[SourceQuality "1"]
[TimeControl "40/5400+30:1800+30"]

1. e4 {[%emt 0:00:03]} c5 {[%emt 0:00:08]} 2. Nf3 {[%emt 0:00:08]} g6 {[%emt 0:00:06]} 3. c3 {[%emt 0:00:20]} d5 {[%emt 0:00:06]} 4. exd5 {[%emt 0:01:21]} Qxd5 {[%emt 0:00:07]} 5. d4 {[%emt 0:00:44]} Bg7 {[%emt 0:00:07]} 6. h3 {[%emt 0:02:37]} Nf6 {[%emt 0:03:06]} 7. Be3 {[%emt 0:04:41]} cxd4 {[%emt 0:23:38]} 8. cxd4 {[%emt 0:00:53]} Qa5+ {[%emt 0:04:51]} 9. Qd2 {[%emt 0:10:03]} Qxd2+ {[%emt 0:00:35]} 10. Nbxd2 {[%emt 0:01:43]} O-O {[%emt 0:06:40]} 11. Bc4 {[%emt 0:02:45]} Nc6 {[%emt 0:03:38]} 12. O-O {[%emt 0:04:08]} Na5 {[%emt 0:05:37]} 13. Rac1 {[%emt 0:05:43]} Nxc4 {[%emt 0:01:01]} 14. Rxc4 {[%emt 0:08:11]} Nd5 {[%emt 0:03:33]} 15. Rc5 {[%emt 0:04:36]} Rd8 {[%emt 0:07:19]} 16. a3 {[%emt 0:07:38]} b6 {[%emt 0:02:44]} 17. Rcc1 {[%emt 0:02:30]} Ba6 {[%emt 0:02:17]} 18. Rfe1 {[%emt 0:02:12]} Rac8 {[%emt 0:04:09]} 19. Nb3 {[%emt 0:03:18]} h6 {[%emt 0:08:02]} 20. Nfd2 {[%emt 0:07:07]} Nc7 {[%emt 0:03:49]} 21. Nf3 {[%emt 0:05:08]} Ne6 {[%emt 0:02:07]} 22. Rxc8 {[%emt 0:02:14]} Bxc8 {[%emt 0:01:14]} 23. Ne5 {[%emt 0:02:26]} Bb7 {[%emt 0:01:30]} 24. Rc1 {[%emt 0:01:25]} Bd5 {[%emt 0:01:27]} 25. Nd2 {[%emt 0:01:55]} Bb7 {[%emt 0:02:11]} 26. Nb3 {[%emt 0:00:39]} g5 {[%emt 0:01:13]} 27. Ng4 {[%emt 0:02:10]} Kh7 {[%emt 0:01:35]} 28. Ne5 {[%emt 0:03:02]} Bxe5 {[%emt 0:00:31]} 29. dxe5 {[%emt 0:00:12]} Rd5 {[%emt 0:00:12]} 30. Rc2 {[%emt 0:01:22]} Rxe5 {[%emt 0:01:10]} 31. Rd2 {[%emt 0:00:06]} Nf4 {[%emt 0:04:58]} 32. Bxf4 {[%emt 0:00:21]} gxf4 {[%emt 0:00:26]} 33. Rd4 {[%emt 0:02:14]} f3 {[%emt 0:02:04]} 34. g4 {[%emt 0:00:59]} Re1+ {[%emt 0:01:26]} 35. Kh2 {[%emt 0:00:07]} Re2 {[%emt 0:00:14]} 36. Rd2 {[%emt 0:00:09]} e6 {[%emt 0:02:04]} 37. Rd7 {[%emt 0:00:55]} Rxf2+ {[%emt 0:00:26]} 38. Kh1 {[%emt 0:01:15]} Bd5 {[%emt 0:01:09]} 0-1

[Event "HUN-ch U8-U18 2019"]
[Site "Balatonlelle"]
[Date "2019.06.24"]
[Round "4.23"]
[White "Sulyok, Eszter"]
[Black "Buri, Petra Zsuzsanna"]
[Result "1-0"]
[ECO "A20"]
[WhiteElo "1840"]
[BlackElo "1634"]
[Annotator "NA"]
[PlyCount "81"]
[EventDate "2019.06.21"]
[EventType "swiss"]
[EventCountry "HUN"]
[SourceTitle "playchess.com"]
[Source "ChessBase"]
[SourceQuality "1"]
[TimeControl "40/5400+30:1800+30"]

1. c4 {[%emt 0:00:13]} e5 {[%emt 0:00:36]} 2. e3 {[%emt 0:00:09]} Nf6 {[%emt 0:00:15]} 3. a3 {[%emt 0:00:08]} g6 {[%emt 0:00:21]} 4. Nc3 {[%emt 0:01:24]} Bg7 {[%emt 0:00:48]} 5. e4 {[%emt 0:02:22]} O-O {[%emt 0:03:21]} 6. g3 {[%emt 0:00:07]} d6 {[%emt 0:01:43]} 7. Bg2 {[%emt 0:00:13]} Nbd7 {[%emt 0:01:33]} 8. d3 {[%emt 0:02:03]} Nc5 {[%emt 0:02:34]} 9. b4 {[%emt 0:02:18]} Ne6 {[%emt 0:01:21]} 10. Nge2 {[%emt 0:00:10]} a5 {[%emt 0:01:39]} 11. Rb1 {[%emt 0:04:48]} axb4 {[%emt 0:04:39]} 12. axb4 {[%emt 0:00:07]} c6 {[%emt 0:01:49]} 13. O-O {[%emt 0:01:42]} Nd7 {[%emt 0:02:22]} 14. Kh1 {[%emt 0:01:29]} f5 {[%emt 0:03:36]} 15. Bh3 {[%emt 0:09:07]} Ng5 {[%emt 0:06:51]} 16. Bxg5 {[%emt 0:02:30]} Qxg5 {[%emt 0:00:13]} 17. f4 {[%emt 0:04:32]} Qh6 {[%emt 0:01:08]} 18. Bg2 {[%emt 0:01:33]} Nf6 {[%emt 0:04:27]} 19. Bf3 {[%emt 0:11:38]} fxe4 {[%emt 0:26:47]} 20. Nxe4 {[%emt 0:08:01]} Ng4 {[%emt 0:01:47]} 21. Bxg4 {[%emt 0:00:14]} Bxg4 {[%emt 0:00:14]} 22. Qd2 {[%emt 0:04:45]} Bxe2 {[%emt 0:07:29]} 23. Qxe2 {[%emt 0:00:06]} exf4 {[%emt 0:01:51]} 24. gxf4 {[%emt 0:01:57]} Rae8 {[%emt 0:04:03]} 25. Qg4 {[%emt 0:02:35]} d5 {[%emt 0:03:15]} 26. Nd6 {[%emt 0:03:21]} Re7 {[%emt 0:05:07]} 27. c5 {[%emt 0:03:02]} Bd4 {[%emt 0:04:04]} 28. Rf3 {[%emt 0:05:09]} Qg7 {[%emt 0:01:48]} 29. Rbf1 {[%emt 0:01:54]} b6 {[%emt 0:02:34]} 30. cxb6 {[%emt 0:07:28]} Bxb6 {[%emt 0:00:02]} 31. Nc8 {[%emt 0:00:12]} Rb7 {[%emt 0:00:46]} 32. Qe6+ {[%emt 0:02:53]} Kh8 {[%emt 0:00:33]} 33. Qxc6 {[%emt 0:02:07]} Qc7 {[%emt 0:00:51]} 34. Qxc7 {[%emt 0:00:56]} Bxc7 {[%emt 0:00:02]} 35. Ne7 {[%emt 0:00:25]} Rb5 {[%emt 0:00:29]} 36. f5 {[%emt 0:06:24]} gxf5 {[%emt 0:01:28]} 37. Rh3 {[%emt 0:04:54]} Rf6 {[%emt 0:01:13]} 38. Rg1 {[%emt 0:00:19]} Rb8 {[%emt 0:00:55]} 39. Nxd5 {[%emt 0:00:08]} Rc6 {[%emt 0:00:34]} 40. b5 {[%emt 0:00:00]} Rc5 {[%emt 0:00:00]} 41. Nf6 {[%emt 0:01:37]} 1-0

[Event "HUN-ch U8-U18 2019"]
[Site "Balatonlelle"]
[Date "2019.06.24"]
[Round "4.23"]
[White "Marjanovic, Alex"]
[Black "Megyaszai, Balazs"]
[Result "0-1"]
[ECO "B52"]
[WhiteElo "1629"]
[BlackElo "1905"]
[Annotator "NA"]
[PlyCount "206"]
[EventDate "2019.06.21"]
[EventType "swiss"]
[EventCountry "HUN"]
[SourceTitle "playchess.com"]
[Source "ChessBase"]
[SourceQuality "1"]
[TimeControl "40/5400+30:1800+30"]

1. e4 {[%emt 0:00:03]} c5 {[%emt 0:00:37]} 2. Nf3 {[%emt 0:00:16]} d6 {[%emt 0:01:16]} 3. Bb5+ {[%emt 0:01:13]} Bd7 {[%emt 0:03:05]} 4. Bxd7+ {[%emt 0:00:29]} Nxd7 {[%emt 0:01:54]} 5. O-O {[%emt 0:00:59]} Ngf6 {[%emt 0:04:39]} 6. Qe2 {[%emt 0:02:04]} Rc8 {[%emt 0:06:58]} 7. Rd1 {[%emt 0:06:32]} g6 {[%emt 0:05:05]} 8. c3 {[%emt 0:00:47]} Bh6 {[%emt 0:09:46]} 9. Na3 {[%emt 0:12:47]} O-O {[%emt 0:16:05]} 10. d4 {[%emt 0:02:49]} Bxc1 {[%emt 0:04:27]} 11. Raxc1 {[%emt 0:01:18]} Ne8 {[%emt 0:07:28]} 12. e5 {[%emt 0:06:12]} Nb6 {[%emt 0:05:37]} 13. dxc5 {[%emt 0:04:01]} Rxc5 {[%emt 0:01:18]} 14. exd6 {[%emt 0:04:30]} Nxd6 {[%emt 0:00:55]} 15. b4 {[%emt 0:01:10]} Rc8 {[%emt 0:06:41]} 16. c4 {[%emt 0:00:29]} Nd7 {[%emt 0:05:18]} 17. c5 {[%emt 0:03:00]} Ne8 {[%emt 0:02:35]} 18. Ne5 {[%emt 0:02:11]} Nef6 {[%emt 0:03:11]} 19. Qb5 {[%emt 0:01:23]} Rc7 {[%emt 0:03:45]} 20. Nxd7 {[%emt 0:01:52]} Rxd7 {[%emt 0:01:05]} 21. Rxd7 {[%emt 0:00:20]} Qxd7 {[%emt 0:00:15]} 22. Qxd7 {[%emt 0:00:17]} Nxd7 {[%emt 0:00:07]} 23. Rd1 {[%emt 0:00:16]} Nf6 {[%emt 0:00:46]} 24. Nc4 {[%emt 0:01:41]} Rc8 {[%emt 0:01:16]} 25. Ne5 {[%emt 0:00:37]} Kg7 {[%emt 0:02:15]} 26. h3 {[%emt 0:02:22]} Rc7 {[%emt 0:02:25]} 27. f3 {[%emt 0:00:31]} e6 {[%emt 0:01:16]} 28. a3 {[%emt 0:00:31]} Nd5 {[%emt 0:00:09]} 29. Kf2 {[%emt 0:00:42]} Kf6 {[%emt 0:00:40]} 30. Ng4+ {[%emt 0:00:35]} Ke7 {[%emt 0:01:10]} 31. Ne3 {[%emt 0:00:32]} Nf6 {[%emt 0:00:48]} 32. Ke2 {[%emt 0:00:33]} Nd7 {[%emt 0:01:05]} 33. Rc1 {[%emt 0:01:06]} a6 {[%emt 0:00:42]} 34. Kd2 {[%emt 0:01:00]} h5 {[%emt 0:00:30]} 35. Nc4 {[%emt 0:00:26]} Nb8 {[%emt 0:00:48]} 36. Nb6 {[%emt 0:00:25]} Nd7 {[%emt 0:00:35]} 37. Nc4 {[%emt 0:00:26]} Nb8 {[%emt 0:00:28]} 38. Nd6 {[%emt 0:00:11]} Nd7 {[%emt 0:00:40]} 39. Rc4 {[%emt 0:01:55]} Ne5 {[%emt 0:01:08]} 40. Rc3 {[%emt 0:00:00]} Nc6 {[%emt 0:00:00]} 41. f4 {[%emt 0:01:39]} Rd7 {[%emt 0:03:42]} 42. Ke3 {[%emt 0:01:04]} Kf8 {[%emt 0:02:32]} 43. Rc4 {[%emt 0:02:33]} Ne7 {[%emt 0:04:43]} 44. a4 {[%emt 0:01:46]} Nd5+ {[%emt 0:01:20]} 45. Kf3 {[%emt 0:00:35]} Rc7 {[%emt 0:04:32]} 46. b5 {[%emt 0:01:27]} axb5 {[%emt 0:04:45]} 47. axb5 {[%emt 0:00:06]} Ne7 {[%emt 0:01:12]} 48. Ke4 {[%emt 0:01:25]} Rd7 {[%emt 0:02:33]} 49. Kf3 {[%emt 0:01:34]} Rc7 {[%emt 0:00:40]} 50. g4 {[%emt 0:01:20]} hxg4+ {[%emt 0:00:54]} 51. Kxg4 {[%emt 0:00:13]} Rd7 {[%emt 0:00:58]} 52. Kf3 {[%emt 0:01:06]} Rc7 {[%emt 0:01:00]} 53. c6 {[%emt 0:02:28]} b6 {[%emt 0:06:30]} 54. Ra4 {[%emt 0:00:52]} Nd5 {[%emt 0:01:22]} 55. Nc4 {[%emt 0:00:44]} Nc3 {[%emt 0:00:43]} 56. Nxb6 {[%emt 0:01:40]} Nxb5 {[%emt 0:00:25]} 57. Ra8+ {[%emt 0:01:25]} Kg7 {[%emt 0:00:15]} 58. Rc8 {[%emt 0:00:22]} Rxc8 {[%emt 0:00:09]} 59. Nxc8 {[%emt 0:00:06]} Nd4+ {[%emt 0:00:08]} 60. Ke4 {[%emt 0:00:31]} Nxc6 {[%emt 0:00:10]} 61. Nd6 {[%emt 0:00:50]} Ne7 {[%emt 0:00:36]} 62. Nc4 {[%emt 0:00:12]} Nf5 {[%emt 0:00:16]} 63. Ne5 {[%emt 0:00:21]} Nd6+ {[%emt 0:00:07]} 64. Kd4 {[%emt 0:00:14]} Nf5+ {[%emt 0:00:45]} 65. Ke4 {[%emt 0:00:26]} Ng3+ {[%emt 0:00:11]} 66. Kf3 {[%emt 0:00:13]} Nh5 {[%emt 0:00:13]} 67. Nd3 {[%emt 0:00:23]} Nf6 {[%emt 0:00:10]} 68. Ne5 {[%emt 0:00:18]} Nd5 {[%emt 0:00:22]} 69. Ke4 {[%emt 0:01:19]} Nf6+ {[%emt 0:00:07]} 70. Kf3 {[%emt 0:00:06]} Ne8 {[%emt 0:00:06]} 71. Ke4 {[%emt 0:00:28]} Nd6+ {[%emt 0:00:07]} 72. Kf3 {[%emt 0:00:16]} Nf5 {[%emt 0:00:06]} 73. Ke4 {[%emt 0:00:10]} Ne7 {[%emt 0:00:08]} 74. Kf3 {[%emt 0:00:13]} Nc8 {[%emt 0:00:13]} 75. Ke4 {[%emt 0:00:20]} Nd6+ {[%emt 0:00:05]} 76. Kf3 {[%emt 0:00:18]} Kh7 {[%emt 0:00:00]} 77. Kg4 {[%emt 0:00:37]} Kg7 {[%emt 0:00:00]} 78. Kf3 {[%emt 0:00:13]} Kf6 {[%emt 0:00:00]} 79. Kg4 {[%emt 0:00:18]} g5 {[%emt 0:00:35]} 80. Nd7+ {[%emt 0:00:47]} Ke7 {[%emt 0:00:09]} 81. Ne5 {[%emt 0:00:18]} gxf4 {[%emt 0:00:29]} 82. Kxf4 {[%emt 0:00:05]} Nf5 {[%emt 0:00:30]} 83. Ng4 {[%emt 0:00:20]} f6 {[%emt 0:01:03]} 84. Ke4 {[%emt 0:01:47]} Ng7 {[%emt 0:00:37]} 85. Kf4 {[%emt 0:00:17]} Nh5+ {[%emt 0:00:18]} 86. Ke3 {[%emt 0:00:24]} e5 {[%emt 0:00:44]} 87. Ke4 {[%emt 0:00:23]} Ke6 {[%emt 0:00:08]} 88. Ne3 {[%emt 0:00:10]} Ng3+ {[%emt 0:00:49]} 89. Kf3 {[%emt 0:00:29]} Nf5 {[%emt 0:00:20]} 90. Nc4 {[%emt 0:00:57]} Nd6 {[%emt 0:01:19]} 91. Ne3 {[%emt 0:00:06]} Nf7 {[%emt 0:01:21]} 92. h4 {[%emt 0:00:24]} Nh6 {[%emt 0:00:20]} 93. h5 {[%emt 0:00:22]} f5 {[%emt 0:01:19]} 94. Nc4 {[%emt 0:00:27]} Nf7 {[%emt 0:00:27]} 95. Ne3 {[%emt 0:00:27]} Kf6 {[%emt 0:01:30]} 96. Nd5+ {[%emt 0:01:08]} Kg5 {[%emt 0:00:29]} 97. Ne7 {[%emt 0:00:12]} Nh6 {[%emt 0:01:11]} 98. Ke3 {[%emt 0:00:44]} Ng4+ {[%emt 0:00:47]} 99. Kf3 {[%emt 0:00:17]} e4+ {[%emt 0:01:05]} 100. Ke2 {[%emt 0:00:09]} f4 {[%emt 0:00:36]} 101. Nd5 {[%emt 0:00:11]} f3+ {[%emt 0:00:36]} 102. Kf1 {[%emt 0:00:41]} e3 {[%emt 0:01:34]} 103. h6 {[%emt 0:00:15]} Nh2+ {[%emt 0:00:20]} 0-1

[Event "HUN-ch U8-U18 2019"]
[Site "Balatonlelle"]
[Date "2019.06.24"]
[Round "4.24"]
[White "Toth, Gergely"]
[Black "Herczeg, Marcell"]
[Result "1/2-1/2"]
[ECO "C44"]
[WhiteElo "1485"]
[BlackElo "1783"]
[Annotator "NA"]
[PlyCount "36"]
[EventDate "2019.06.21"]
[EventType "swiss"]
[EventCountry "HUN"]
[SourceTitle "playchess.com"]
[Source "ChessBase"]
[SourceQuality "1"]
[TimeControl "40/5400+30:1800+30"]

1. e4 {[%emt 0:00:02]} e5 {[%emt 0:00:42]} 2. Nf3 {[%emt 0:00:18]} Nc6 {[%emt 0:00:56]} 3. d4 {[%emt 0:00:31]} exd4 {[%emt 0:01:06]} 4. Nxd4 {[%emt 0:00:27]} Nf6 {[%emt 0:02:18]} 5. f3 {[%emt 0:10:37]} d6 {[%emt 0:02:02]} 6. Nc3 {[%emt 0:00:59]} g6 {[%emt 0:05:50]} 7. Be3 {[%emt 0:02:15]} Bg7 {[%emt 0:00:47]} 8. Bc4 {[%emt 0:02:48]} Bd7 {[%emt 0:06:04]} 9. Qd2 {[%emt 0:06:49]} Ne5 {[%emt 0:04:46]} 10. Bb3 {[%emt 0:01:56]} O-O {[%emt 0:06:56]} 11. O-O {[%emt 0:04:31]} Qe7 {[%emt 0:07:54]} 12. Bg5 {[%emt 0:03:45]} Nc6 {[%emt 0:35:07]} 13. Nd5 {[%emt 0:11:10]} Qd8 {[%emt 0:01:20]} 14. Nb5 {[%emt 0:01:10]} Rc8 {[%emt 0:06:56]} 15. Nbc3 {[%emt 0:03:11]} Be6 {[%emt 0:04:36]} 16. Qf4 Bxd5 17. Nxd5 Nxd5 18. Bxd5 Nb8 1/2-1/2

[Event "HUN-ch U8-U18 2019"]
[Site "Balatonlelle"]
[Date "2019.06.24"]
[Round "4.24"]
[White "Buri, Kata"]
[Black "Molnar, Liza Dorottya"]
[Result "1-0"]
[ECO "B28"]
[WhiteElo "1393"]
[BlackElo "1559"]
[Annotator "NA"]
[PlyCount "103"]
[EventDate "2019.06.21"]
[EventType "swiss"]
[EventCountry "HUN"]
[SourceTitle "playchess.com"]
[Source "ChessBase"]
[SourceQuality "1"]
[TimeControl "40/5400+30:1800+30"]

1. e4 {[%emt 0:00:04]} c5 {[%emt 0:00:15]} 2. Nf3 {[%emt 0:00:27]} a6 {[%emt 0:00:12]} 3. c3 {[%emt 0:00:33]} g6 {[%emt 0:01:12]} 4. d4 {[%emt 0:03:00]} cxd4 {[%emt 0:00:08]} 5. cxd4 {[%emt 0:00:10]} d5 {[%emt 0:00:13]} 6. e5 {[%emt 0:02:49]} Nc6 {[%emt 0:05:47]} 7. Nc3 {[%emt 0:04:30]} Bg7 {[%emt 0:06:50]} 8. Be2 {[%emt 0:02:10]} e6 {[%emt 0:04:21]} 9. Bf4 {[%emt 0:02:07]} Nge7 {[%emt 0:02:17]} 10. Qd2 {[%emt 0:01:01]} h5 {[%emt 0:05:05]} 11. h3 {[%emt 0:03:24]} Nf5 {[%emt 0:04:18]} 12. a3 {[%emt 0:04:55]} Qb6 {[%emt 0:07:03]} 13. Na4 {[%emt 0:01:27]} Qa5 {[%emt 0:05:56]} 14. Nc3 {[%emt 0:00:47]} b5 {[%emt 0:04:29]} 15. Ra2 {[%emt 0:00:36]} Qb6 {[%emt 0:00:36]} 16. Be3 {[%emt 0:01:58]} Bb7 {[%emt 0:03:29]} 17. O-O {[%emt 0:05:31]} O-O {[%emt 0:00:30]} 18. Rd1 {[%emt 0:00:43]} Nxe3 {[%emt 0:02:44]} 19. Qxe3 {[%emt 0:00:12]} Rac8 {[%emt 0:04:36]} 20. Bd3 {[%emt 0:01:45]} Na5 {[%emt 0:04:22]} 21. Qg5 {[%emt 0:01:26]} Qd8 {[%emt 0:02:37]} 22. Qg3 {[%emt 0:01:36]} Nc6 {[%emt 0:04:48]} 23. Bc2 {[%emt 0:02:25]} Ne7 {[%emt 0:03:49]} 24. Qf4 {[%emt 0:03:19]} a5 {[%emt 0:02:24]} 25. Bd3 {[%emt 0:01:13]} b4 {[%emt 0:01:25]} 26. axb4 {[%emt 0:00:22]} axb4 {[%emt 0:00:32]} 27. Nb5 {[%emt 0:00:29]} Qb6 {[%emt 0:04:40]} 28. Nd6 {[%emt 0:01:05]} Rc7 {[%emt 0:02:17]} 29. g4 {[%emt 0:07:20]} hxg4 {[%emt 0:02:24]} 30. hxg4 {[%emt 0:01:11]} Nc8 {[%emt 0:02:22]} 31. Kg2 {[%emt 0:02:59]} Nxd6 {[%emt 0:00:25]} 32. exd6 {[%emt 0:00:07]} Rd7 {[%emt 0:00:56]} 33. Ne5 {[%emt 0:00:07]} Qxd6 {[%emt 0:03:04]} 34. Rh1 {[%emt 0:02:11]} Re8 {[%emt 0:08:19]} 35. Qh2 {[%emt 0:00:19]} Rc7 {[%emt 0:00:55]} 36. Bxg6 {[%emt 0:01:48]} fxg6 {[%emt 0:01:09]} 37. Qh7+ {[%emt 0:00:09]} Kf8 {[%emt 0:00:15]} 38. Nxg6+ {[%emt 0:00:10]} Kf7 {[%emt 0:00:09]} 39. Qh5 {[%emt 0:00:37]} Kg8 {[%emt 0:01:46]} 40. Nh8 {[%emt 0:00:00]} Qd7 {[%emt 0:00:00]} 41. Qh7+ {[%emt 0:02:01]} Kf8 {[%emt 0:01:09]} 42. Ng6+ {[%emt 0:00:08]} Kf7 {[%emt 0:01:09]} 43. Ne5+ {[%emt 0:00:06]} Kf8 {[%emt 0:01:04]} 44. Nxd7+ {[%emt 0:00:07]} Rxd7 {[%emt 0:00:13]} 45. Rh6 {[%emt 0:01:36]} Rf7 {[%emt 0:00:34]} 46. Rg6 {[%emt 0:00:21]} Bxd4 {[%emt 0:01:14]} 47. Rg8+ {[%emt 0:00:22]} Ke7 {[%emt 0:00:39]} 48. Rxe8+ {[%emt 0:00:07]} Kxe8 {[%emt 0:00:11]} 49. Qg8+ {[%emt 0:00:24]} Ke7 {[%emt 0:00:15]} 50. b3 {[%emt 0:00:09]} Rg7 {[%emt 0:01:28]} 51. Qb8 {[%emt 0:00:21]} Kf6 {[%emt 0:00:12]} 52. Qf4+ {[%emt 0:00:07]} 1-0

[Event "HUN-ch U8-U18 2019"]
[Site "Balatonlelle"]
[Date "2019.06.24"]
[Round "4.25"]
[White "Andras, Ferenc"]
[Black "Konyves, Almos"]
[Result "0-1"]
[ECO "B43"]
[WhiteElo "1329"]
[BlackElo "2125"]
[Annotator "NA"]
[PlyCount "90"]
[EventDate "2019.06.21"]
[EventType "swiss"]
[EventCountry "HUN"]
[SourceTitle "playchess.com"]
[Source "ChessBase"]
[SourceQuality "1"]
[TimeControl "40/5400+30:1800+30"]

1. e4 {[%emt 0:00:04]} c5 {[%emt 0:00:07]} 2. Nf3 {[%emt 0:00:29]} e6 {[%emt 0:00:07]} 3. d4 {[%emt 0:00:22]} cxd4 {[%emt 0:00:04]} 4. Nxd4 {[%emt 0:00:30]} a6 {[%emt 0:00:05]} 5. Nc3 {[%emt 0:03:04]} Qc7 {[%emt 0:00:24]} 6. Be3 {[%emt 0:04:15]} b5 {[%emt 0:00:13]} 7. a3 {[%emt 0:02:57]} Bb7 {[%emt 0:00:41]} 8. f3 {[%emt 0:05:15]} Nf6 {[%emt 0:00:22]} 9. Qd2 {[%emt 0:02:50]} d6 {[%emt 0:01:01]} 10. O-O-O {[%emt 0:04:35]} Be7 {[%emt 0:01:32]} 11. h4 {[%emt 0:03:56]} O-O {[%emt 0:11:02]} 12. g4 {[%emt 0:05:11]} Nc6 {[%emt 0:00:46]} 13. Nxc6 {[%emt 0:08:27]} Bxc6 {[%emt 0:03:34]} 14. h5 {[%emt 0:02:05]} Rfd8 {[%emt 0:11:04]} 15. g5 {[%emt 0:04:06]} Ne8 {[%emt 0:01:59]} 16. Qh2 {[%emt 0:13:42]} Qa5 {[%emt 0:28:00]} 17. Na2 {[%emt 0:09:02]} d5 {[%emt 0:06:41]} 18. Bd2 {[%emt 0:02:31]} Qb6 {[%emt 0:01:48]} 19. Bd3 {[%emt 0:06:05]} dxe4 {[%emt 0:02:52]} 20. Bxe4 {[%emt 0:01:01]} Rac8 {[%emt 0:03:32]} 21. Qg2 {[%emt 0:10:36]} Bxe4 {[%emt 0:07:28]} 22. fxe4 {[%emt 0:00:19]} Qc5 {[%emt 0:01:07]} 23. Bb4 {[%emt 0:02:35]} Qxg5+ {[%emt 0:00:26]} 24. Qxg5 {[%emt 0:00:35]} Bxg5+ {[%emt 0:00:06]} 25. Kb1 {[%emt 0:00:04]} Nf6 {[%emt 0:01:34]} 26. Rxd8+ {[%emt 0:02:08]} Rxd8 {[%emt 0:00:05]} 27. Be7 {[%emt 0:00:07]} Rd4 {[%emt 0:05:40]} 28. Bxf6 {[%emt 0:01:51]} Bxf6 {[%emt 0:00:10]} 29. Nc3 {[%emt 0:00:29]} Rc4 {[%emt 0:00:20]} 30. Rh3 {[%emt 0:01:24]} Bxc3 {[%emt 0:00:52]} 31. bxc3 {[%emt 0:00:18]} Rxe4 {[%emt 0:00:53]} 32. Kb2 {[%emt 0:00:23]} f5 {[%emt 0:00:34]} 33. Rf3 {[%emt 0:00:33]} f4 {[%emt 0:01:06]} 34. Kc1 {[%emt 0:00:32]} Kf7 {[%emt 0:00:57]} 35. Kd2 {[%emt 0:00:14]} Ke7 {[%emt 0:01:44]} 36. Kd3 {[%emt 0:00:16]} Re3+ {[%emt 0:00:23]} 37. Rxe3 {[%emt 0:00:07]} fxe3 {[%emt 0:00:06]} 38. Kxe3 {[%emt 0:00:09]} g5 {[%emt 0:00:07]} 39. hxg6 {[%emt 0:00:12]} hxg6 {[%emt 0:00:06]} 40. Kf4 {[%emt 0:00:00]} Kd6 {[%emt 0:00:00]} 41. Ke4 {[%emt 0:00:29]} g5 {[%emt 0:00:15]} 42. Kf3 {[%emt 0:00:17]} e5 {[%emt 0:00:08]} 43. Ke3 {[%emt 0:00:53]} g4 {[%emt 0:00:06]} 44. Ke2 {[%emt 0:00:09]} e4 {[%emt 0:00:06]} 45. Kf2 {[%emt 0:00:15]} Kc5 {[%emt 0:00:08]} 0-1